Cogmind - Beta 17 @@@ ROGUE MODE // 2026.07.31 @ 20:39:19 Player: TheTravelingGuy Result: Destroyed by G-34 Mercenary with Small Laser Performance ------------- Evolutions (0) 0 Regions Visited (1) 200 Robots Destroyed (27) 135 Value Destroyed (514) 514 Prototype IDs (0) 0 Alien Tech Used (0) 0 Bonus (0) 0 TOTAL SCORE: 849 Bonus ------- None Cogmind --------- Core Integrity 0/250 Matter 268/300 Energy 250/250 System Corruption 0% Temperature Warm (194) Movement Walking (120) Location -10/Materials Parts ------- > --- POWER (1) -------- Ion Engine > --- PROPULSION (2) --- Aluminum Leg Aluminum Leg > --- UTILITY (2) ------ Medium Storage Unit Signal Interpreter > --- WEAPON (2) ------- Small Laser Light Assault Rifle > --- INVENTORY (10) --- Aluminum Leg Aluminum Leg Authchip [R/Combat] Authchip [R/Combat] Authchip [R/Combat] Authchip [Device] Authchip [Device] Authchip [Processor] Grenade Launcher Peak State ------------ > --- POWER ------------ Ion Engine > --- PROPULSION ------- Aluminum Leg Aluminum Leg > --- UTILITY ---------- Medium Storage Unit Improved Terrain Scanner > --- WEAPON ----------- Medium Laser Small Laser > --- INVENTORY -------- Aluminum Leg Aluminum Leg Improved Heat Sink Authchip [R/Combat] Authchip [Device] Authchip [Device] Authchip [Processor] Light Assault Rifle Grenade Launcher [Rating: 11] Favorites ----------- Power Ion Engine Engine Ion Engine Propulsion Light Treads Treads Light Treads Leg Aluminum Leg Utility Small Storage Unit Device Improved Terrain Scanner Storage Small Storage Unit Processor Signal Interpreter Weapon Medium Laser Energy Gun Medium Laser Ballistic Gun Assault Rifle Launcher Grenade Launcher Build | -11 -10 ------- Run | Yrd Mat Slots Evolved . | . . Power . | . . Propulsion . | . . Utility . | . . Weapon . | . . Parts Attached 19 | 9 10 Power 2 | 1 1 Engine 2 | 1 1 Core . | . . Reactor . | . . Propulsion 5 | 3 2 Treads 2 | 2 . Leg 3 | 1 2 Wheel . | . . Hover . | . . Flight . | . . Utility 6 | 2 4 Device 2 | 1 1 Storage 2 | 1 1 Processor 2 | . 2 Hackware . | . . Protection . | . . Artifact . | . . Weapon 6 | 3 3 Energy Gun 3 | 2 1 Energy Cannon . | . . Ballistic Gun 2 | 1 1 Ballistic Cannon . | . . Launcher 1 | . 1 Special Weapon . | . . Impact Weapon . | . . Slashing Weapon . | . . Piercing Weapon . | . . Special Melee Weapon . | . . Unidentified Prototypes . | . . Parts Lost 4 | . 4 Power 1 | . 1 Propulsion 1 | . 1 Utility 1 | . 1 Weapon 1 | . 1 Highest Loss Streak 2 | . 2 To Critical Strikes . | . . Average Backups 7 | 4 7 Power . | . . Propulsion 3 | 2 3 Utility 2 | . 2 Weapon 1 | 1 1 Tool/Special . | . . Unused Backups 12 | . 12 Power . | . . Propulsion 5 | . 5 Utility 7 | . 7 Weapon . | . . Tool/Special . | . . Average Slot Usage (%) 99 | . 99 Engine 14 | . 14 Treads 13 | . 13 Leg 14 | . 14 Device 10 | . 10 Storage 14 | . 14 Processor 3 | . 3 Energy Gun 17 | . 17 Ballistic Gun 10 | . 10 Peak Build Rating 11 | 7 11 Average Rating 8 | 5 8 On Entrance 3 | . 7 Avg Prop Armor Cover (%) . | . . Naked Turns . | . . Heaviest Build 20 | 13 20 Greatest Support 40 | 40 40 Greatest Overweight (x) . | . . Average Overweight (x) . | . . Largest Inventory Capacity 10 | 8 10 Average Capacity 8 | 6 8 Most Carried 10 | 7 10 Average Carried 7 | 4 7 Final Capacity 10 | 8 10 Final Carried 9 | 7 9 Class Distribution -------------------- 67% | Mutant 32% | Scavenger-Mutant Dominant Class ---------------- Mutant | -10/Materials Resources | -11 -10 ----------- Run | Yrd Mat Matter Collected 540 | 233 307 Remotely . | . . Salvage Created 711 | 15 696 Parts 56 | 3 53 Haulers Intercepted 2 | . 2 Recyclers Shooed 1 | . 1 Parts Field Recycled . | . . Retrieved Matter . | . . Parts Self-Destructed . | . . Prevented . | . . Parts Restored . | . . Kills | -11 -10 ------- Run | Yrd Mat Combat Hostiles Destroyed 19 | . 19 Guns 19 | . 19 Classes Destroyed 7 | 1 6 Worker 2 | . 2 Tunneler 1 | 1 . Hauler 2 | . 2 Operator 2 | . 2 Watcher 1 | . 1 Swarmer 9 | . 9 Grunt 10 | . 10 Best Kill Streak 9 | 1 9 Combat Bots Only 8 | . 8 Max Kills in Single Turn 2 | 1 2 Gunslinging 1 | . 1 Exploded . | . . Melee . | . . Uniques/NPCs Destroyed . | . . Combat | -11 -10 -------- Run | Yrd Mat Hostile Shots Fired 143 | . 143 Missed 44 | . 44 Hits 99 | . 99 Projectile 99 | . 99 Critical Strikes 1 | . 1 Damage Taken 1021 | . 1021 Core 257 | . 257 Absorbed by Shields . | . . Core Remaining (%) 100 | 100 . Volleys Fired 94 | 1 93 Largest 2 | 2 2 Hottest 90 | 70 90 Shots Fired 186 | 2 184 Gun 184 | 2 182 Cannon . | . . Launcher 2 | . 2 Special . | . . Kinetic 72 | 1 71 Thermal 112 | 1 111 Explosive 2 | . 2 Electromagnetic . | . . Robot Hit Streak 8 | 1 8 Robot Miss Streak 4 | . 4 Penetration Max . | . . Secondary Targets 6 | . 6 Max Gunslinging Chain 1 | . 1 Shots Hit Robots 112 | 1 111 Core Hits 45 | 1 44 Critical Kills . | . . Critical Parts Destroyed . | . . Critical Strikes 5 | . 5 Burn 5 | . 5 Melee Attacks . | . . Impact . | . . Slashing . | . . Piercing . | . . Sneak Attacks . | . . Combat Hostiles . | . . Follow-up Attacks . | . . Damage Inflicted 1385 | 12 1373 Guns 1337 | 12 1325 Cannons . | . . Explosions 48 | . 48 Melee . | . . Ramming . | . . Kinetic 463 | . 463 Thermal 874 | 12 862 Explosive 48 | . 48 Electromagnetic . | . . Impact . | . . Slashing . | . . Piercing . | . . Highest Corruption . | . . Average Corruption . | . . Corruption Purged . | . . Corruption Blocked . | . . Overload Shots . | . . Overflow Damage . | . . Projectiles . | . . Explosions . | . . Melee . | . . Knockbacks . | . . Impact . | . . Kinetic . | . . Secondary . | . . Self-Inflicted Damage . | . . Shots . | . . Rammed . | . . Targets Rammed . | . . Kicked . | . . Crushed . | . . Highest Temperature 225 | 9 225 Average Temperature 72 | 6 73 Received Heat Transfer 426 | . 426 Siege Activations . | . . Martial Activations . | . . Shielding Activations . | . . Robots Disrupted . | . . Combat Hostiles . | . . Robots Corrupted . | . . Combat Hostiles . | . . Parts Fried . | . . Impact Corruptions . | . . Robots Melted . | . . Combat Hostiles . | . . Parts Melted 9 | . 9 Heat Transferred 2711 | 37 2674 Parts Sabotaged . | . . Parts Stolen . | . . Parts Stripped . | . . Power Chain Reactions . | . . Alert | -11 -10 ------- Run | Yrd Mat Maximum Alert Level 1 | . 1 Low Security (%) 49 | 100 42 Level 1 50 | . 57 Level 2 . | . . Level 3 . | . . Level 4 . | . . Level 5 . | . . High Security . | . . Max Security . | . . Peak Influence 249 | 5 249 Initial . | . . Average 147 | . 166 Influence Increases 554 | 5 549 Destroy 0b10 Robot/C 380 | . 380 Destroy 0b10 Robot/NC 40 | 5 35 Destroy Leader 96 | . 96 Successful Hack 5 | . 5 Disable Machine 15 | . 15 Destroy Structure 18 | . 18 Influence Decreases 334 | 5 329 Time Decay 294 | 5 289 Lost Part 40 | . 40 Squads Dispatched 5 | . 5 Investigation 2 | . 2 Extermination . | . . Reinforcement 3 | . 3 Assault . | . . Garrison . | . . Intercept . | . . Searches Triggered . | . . Construction Impeded . | . . Haulers Reinforced . | . . Active Scanning Responses . | . . Cargo Convoy Interrupts . | . . Stealth | -11 -10 --------- Run | Yrd Mat Distress Signals 1 | . 1 Communications Jammed . | . . Distress Signals . | . . Times Spotted 29 | . 29 Peak Tracking Total 5 | . 5 Tactical Retreats . | . . Traps | -11 -10 ------- Run | Yrd Mat Traps Triggered 1 | . 1 Indirectly . | . . Trap Hack Attempts . | . . Triggered . | . . Disarmed . | . . Reprogrammed . | . . Reused . | . . Traps Extracted . | . . Installed . | . . Triggered . | . . Machines | -11 -10 ---------- Run | Yrd Mat Machines Disabled 1 | . 1 Max in Single Turn 1 | . 1 Machines Repaired . | . . Machines Dismantled . | . . Machines Sabotaged . | . . Overloaded Fab Kills . | . . Hacking | -11 -10 --------- Run | Yrd Mat Machines Accessed 1 | . 1 Terminals 1 | . 1 Fabricators . | . . Repair Stations . | . . Recycling Units . | . . Scanalyzers . | . . Garrison Access . | . . Total Hacks 6 | . 6 Successful 2 | . 2 Failed 4 | . 4 Catastrophic . | . . Database Lockouts . | . . Manual 6 | . 6 Terminals 6 | . 6 Fabricators . | . . Repair Stations . | . . Recycling Units . | . . Scanalyzers . | . . Garrison Access . | . . Terminal Hacks . | . . Fabricator Hacks . | . . Repair Station Hacks . | . . Recycling Unit Hacks . | . . Scanalyzer . | . . Garrison Access Hacks . | . . Unauthorized Hacks 2 | . 2 Terminals 2 | . 2 Assimilate 1 | . 1 Botnet 1 | . 1 Fabricators . | . . Repair Stations . | . . Recycling Units . | . . Scanalyzers . | . . Garrison Access . | . . Data Cores Recovered . | . . Used . | . . Hacking Detections 1 | . 1 Full Trace Events 1 | . 1 Feedback Events . | . . Feedback Blocked . | . . Robot Schematics Acquired . | . . Robots Built . | . . Authchips . | . . Time . | . . Total Robot Build Rating . | . . Part Schematics Acquired . | . . Parts Built . | . . Authchips . | . . Time . | . . Total Part Build Rating . | . . Part Studies Acquired . | . . Parts Repaired . | . . Time . | . . Parts Recycled . | . . Recycled Matter . | . . Retrieved Matter . | . . Retrieved Components . | . . Parts Scanalyzed . | . . Part Schematics Acquired . | . . Parts Damaged . | . . Bothacking | -11 -10 ------------ Run | Yrd Mat Used RIF Installer . | . . Robots Hacked . | . . Non-combat . | . . Combat . | . . Robot Hacks Applied . | . . Relay Couplers Released . | . . Fabnet Peak Effective % . | . . Robots Rewired . | . . Allies Hacked . | . . Hacks Repelled . | . . Allies | -11 -10 -------- Run | Yrd Mat Total Allies . | . . Largest Group . | . . Highest-Rated Group . | . . Highest-Rated Ally . | . . Total Orders . | . . Ally Attacks . | . . Total Damage . | . . Kills . | . . Allies Corrupted . | . . Allies Melted . | . . Intel | -11 -10 ------- Run | Yrd Mat Active Infowar (turns) 619 | 34 585 Optics 38 | . 38 Terrain 331 | . 331 Seismic 250 | 34 216 Robot Analysis Total . | . . Derelict Logs Recovered . | . . Drone Launches . | . . Drone Recoveries . | . . Exploration | -11 -10 ------------- Run | Yrd Mat Turns Passed 839 | 99 740 Spaces Moved 327 | 55 272 Core 7 | 7 . Treads 128 | 31 97 Legs 192 | 17 175 Wheels . | . . Hover . | . . Flight . | . . Fastest Speed 50 | 50 120 Average Speed 134 | 133 134 Slowest Speed 160 | 160 160 Overloaded Moves . | . . Propulsion Burnouts . | . . Robots Hopped . | . . Potential Cave-ins . | . . Cave-ins Triggered . | . . Exploration Rate (%) 24 | 5 44 Regions Visited 1 Branch Regions . Pre-discovered Areas . | . . Known Exits Taken . | . . Unknown Exits Taken 1 | 1 . Scrap Searched . | . . Spaces Dug . | . . Terrain Destroyed 15 | . 15 Melee . | . . Projectile . | . . AOE 15 | . 15 Terrain Rammed . | . . Walls Destroyed . | . . Machines Disabled . | . . Actions | -11 -10 --------- Run | Yrd Mat Total 548 | 78 470 Wait 68 | . 68 Move 326 | 54 272 Hop . | . . Pick Up 29 | 14 15 Fast Attach 1 | . 1 Attach 12 | 7 5 Detach . | . . Swap 7 | 2 5 Drop 11 | . 11 Fire 94 | 1 93 Melee . | . . Ram . | . . Kick . | . . Crush . | . . Escape Stasis . | . . Rewire . | . . Trap . | . . Miscellaneous . | . . Route ------- -11/Scrapyard -10/Materials (discovered 1 exit: *Min) History --------- Turn | Location | Event 24 | -11/Scrapyard | Discovered new exit (range 15) 100 | -11/Scrapyard | Entered Materials 302 | -10/Materials | Destroyed 8 combat bots 317 | -10/Materials | Build established: Mutant 473 | -10/Materials | Core integrity fell below 50% 629 | -10/Materials | Discovered new exit (range 16) 723 | -10/Materials | Identified exit to Mines 821 | -10/Materials | Core integrity fell below 20% 840 | -10/Materials | Destroyed by G-34 Mercenary with Small Laser Last Messages --------------- 00671_ U-05 Engineer lays Concrete. 00675_ U-05 Engineer builds a Wall. 00676_ U-05 Engineer lays Concrete. 00679_ U-05 Engineer builds a Wall. 00680_ U-05 Engineer lays Concrete. 00682_ U-05 Engineer builds a Door. 00687_ U-05 Engineer lays Concrete. 00688_ Dropped Med. Laser. 00707_ Discarded Visual Processing Unit. 00710_ Acquired Signal Interpreter. 00723_ EXIT=IDENTIFIED: MINES 00743_ Triggered Alarm Trap. 00743_ An alarm sounds. 00743_ ALERT: Alarm triggered, dispatching investigation squad. 00748_ ALERT: Hostiles spotted, dispatching reinforcements to Terminal M005. 00791_ G-34 Mercenary destroyed. 00817_ Aluminum Leg melted. 00817_ G-34 Mercenary destroyed. 00839_ Acquired 50 matter. Map ----- +----------------------------------------------------+ | ?????????????????????????????????????????????????? | | ?????????????????????????????????????????????????? | | ?????????????????????????????????????????????????? | | ?????????????????????????????????????????????????? | | ?????????????????????????????????????????????????? | | ?????????????????????????????????????????????????? | | ?????????????????????????????????????????????????? | | ?????????????????????????????????????????????????? | | ?????????????????????????????????????????????????? | | ?????????????????????????????????????????????????? | | ?????????????????????????????????????????????????? | | ?????????????????????????????????????????????????? | | ????????????????????##+#?????????????????????????? | | ????????????????????# ?????????????????????????? | | ????????????????????# #######??????????????????? | | ????????????????????# # #??????????????????? | | ????????????????????# # """ #???????#??????????? | | ????????????????????# # """ #?????????########## | | ????????????????????# # """ #?????????# |=! | | ????????????????????# # #?????????# """ ==! | | ????????????????????# # """ #?????????# "R" [=!! | | ????????????????????# # """ #?????????# " " | | ????????????????????# # """ #?????????# """ | | ????????????????????# # #?????????# """ | | ????????????????????# u%#= !#########?# """ | | ????????????????????# kgg@ #"""""""#?# | | ????????????????????# [#k #" |"! "#?#####+#### | | ?????# #########+## #######" "##### !## | | ?????# ! =%## | | ?????# > *## | | ?????# % | | ???????#####+### ####+## # ##### ## | | ???????????????# ??? # #########?########## | | ???????????????+ ???? # ??######### | | ???????????????# ???? + + | | ???????????????#????? # # | | ????????????????????# ######+### # | | ????????????????????######????????+ + | | ??????????????????????????????????##+##+#### | | ???????????????????????????????????????????# | | ????????????????????????????????????? ?????# | | ??????????????????????????????????????? ??####### | | ?????????????????????????????????????????????????? | | ??????????????????????????????????????????????###? | | ???????????????????????????????????????? ?#????? ? | | ????????????????????????????????????????????? ???? | | ???????????????????????????????????????? ????? ??? | | ?????????????????????????????????????????????????? | | ????????????????????????????????????????????? ???? | | ?????????????????????????????????????????????????? | +----------------------------------------------------+ Best States ------------- Heat Dissipation 25 Energy Generation 10 Energy Capacity 250 Matter Stores 300 Matter Capacity 300 Sight Range 18 Terrain Scan Range 16 Terrain Scan Density 10 Evasion (%) 55 Recoil Reduction 2 Authchip Count 6 Item Schematics ----------------- None Robot Schematics ------------------ None Fabricated ------------ Nothing Repaired ---------- Nothing Studied --------- None Alien Tech Used ----------------- None Achievements -------------- None Challenges ------------ None Game ------ Seed StructuralNavigationLink Manual? 0 Play Time 00:07:40 Cumulative 39.4 hours Start 2026.07.31 @ 20:33:30 End 2026.07.31 @ 20:39:19 Sessions 1 Manual Loads 0 Difficulty Rogue Special Mode None Game No. 72 Rogue 71 Adventurer 1 Explorer 0 Win Type - Total 0 Types 0/0/0/0/0/0/0/0/0/0 Lore% 30 Gallery% 29 Achievement% 22 Wizard Run 0 Options --------- Layout 0 ASCII 0 Keyboard 0 Movement Mouse Keybinds 0 Fullscreen 2 Font 18/SmallcapsGlow Map View 76x50 Zoom Use 0% Tactical HUD 1 Map Filters NONE Filters NONE Steam 1 RUN: 98d973b7-fb44-4f18-82c5-f0f481a6849b